[Event "Marienbad A2-GM 2024"]
[Site "Marianske Lazne"]
[Date "2024.01.16"]
[Round "4.9"]
[White "Agdelen, Huseyin Can"]
[Black "Raczek, Krzysztof"]
[Result "1-0"]
[ECO "B10"]
[WhiteElo "2409"]
[BlackElo "2347"]
[Annotator "RC"]
[PlyCount "125"]
[EventDate "2024.01.10"]
[EventType "tourn"]
[EventCountry "CZE"]
[SourceTitle "playchess.com"]
[Source "ChessBase"]
[SourceQuality "1"]
[TimeControl "40/5400+30:1800+30"]

1. e4 {[%emt 0:15:49]} c6 {[%emt 0:00:08]} 2. Nf3 {[%emt 0:01:30]} d5 {[%emt 0:00:07]} 3. d3 {[%emt 0:00:05]} dxe4 {[%emt 0:00:05]} 4. dxe4 {[%emt 0:00:04]} Qxd1+ {[%emt 0:00:05]} 5. Kxd1 {[%emt 0:00:03]} Nf6 {[%emt 0:00:06]} 6. Nbd2 {[%emt 0:05:39]} g6 {[%emt 0:00:01]} 7. Ne5 {[%emt 0:04:21]} Bg7 {[%emt 0:01:04]} 8. Nd3 {[%emt 0:01:23]} O-O {[%emt 0:00:25]} 9. f3 {[%emt 0:01:12]} Bh6 {[%emt 0:10:27]} 10. c3 {[%emt 0:08:36]} Rd8 {[%emt 0:04:16]} 11. Kc2 {[%emt 0:01:28]} Na6 {[%emt 0:03:44]} 12. Nc4 {[%emt 0:10:41]} Bxc1 {[%emt 0:03:40]} 13. Rxc1 {[%emt 0:00:14]} Be6 {[%emt 0:02:16]} 14. Na5 {[%emt 0:16:10]} Rab8 {[%emt 0:00:54]} 15. Nf4 {[%emt 0:02:48]} Nc7 {[%emt 0:00:07]} 16. Nxe6 {[%emt 0:02:55]} Nxe6 {[%emt 0:16:54]} 17. Bc4 {[%emt 0:02:37]} Nf8 {[%emt 0:01:11]} 18. Rcd1 {[%emt 0:01:11]} N6d7 {[%emt 0:09:52]} 19. Rd2 {[%emt 0:03:12]} Rdc8 {[%emt 0:01:57]} 20. Rhd1 {[%emt 0:04:16]} Ne5 {[%emt 0:01:30]} 21. Be2 {[%emt 0:00:56]} g5 {[%emt 0:00:41]} 22. Nc4 {[%emt 0:02:24]} Nfg6 {[%emt 0:00:18]} 23. Ne3 {[%emt 0:06:21]} Nf4 {[%emt 0:02:19]} 24. Bf1 {[%emt 0:00:30]} Kf8 {[%emt 0:01:34]} 25. g3 {[%emt 0:00:43]} Nfg6 {[%emt 0:00:42]} 26. Be2 {[%emt 0:02:22]} Ke8 {[%emt 0:02:29]} 27. h4 {[%emt 0:00:47]} f6 {[%emt 0:06:27]} 28. hxg5 {[%emt 0:00:22]} fxg5 {[%emt 0:00:06]} 29. Rh1 {[%emt 0:00:04]} Kf7 {[%emt 0:00:59]} 30. Rxh7+ {[%emt 0:00:43]} Kf6 {[%emt 0:00:04]} 31. Rd1 {[%emt 0:03:23]} Rh8 {[%emt 0:00:12]} 32. Rdh1 {[%emt 0:00:08]} Rxh7 {[%emt 0:01:18]} 33. Rxh7 {[%emt 0:00:03]} Rf8 {[%emt 0:00:37]} 34. Rh5 {[%emt 0:00:31]} e6 {[%emt 0:01:02]} 35. Rh7 {[%emt 0:01:25]} Rf7 {[%emt 0:02:23]} 36. Rxf7+ {[%emt 0:00:07]} Nxf7 {[%emt 0:00:19]} 37. Ng4+ {[%emt 0:00:12]} Ke7 {[%emt 0:00:11]} 38. Kd2 {[%emt 0:00:07]} Nd6 {[%emt 0:00:50]} 39. Ke3 {[%emt 0:00:31]} e5 {[%emt 0:01:07]} 40. Bf1 {[%emt 0:02:25]} a5 {[%emt 0:00:47]} 41. b3 {[%emt 0:31:55]} b5 {[%emt 0:34:00]} 42. a3 {[%emt 0:00:00]} Nf7 {[%emt 0:00:00]} 43. c4 {[%emt 0:00:00]} Nd6 {[%emt 0:00:00]} 44. cxb5 {[%emt 0:00:00]} cxb5 {[%emt 0:00:00]} 45. Nh6 {[%emt 0:00:00]} b4 {[%emt 0:00:00]} 46. axb4 {[%emt 0:00:00]} axb4 {[%emt 0:00:00]} 47. Nf5+ {[%emt 0:00:00]} Kd7 {[%emt 0:00:00]} 48. Kd3 {[%emt 0:00:00]} Ne7 {[%emt 0:00:00]} 49. Nxd6 {[%emt 0:00:00]} Kxd6 {[%emt 0:00:00]} 50. Kc4 {[%emt 0:00:00]} Nc6 {[%emt 0:00:00]} 51. Bg2 {[%emt 0:00:00]} Kd7 {[%emt 0:00:00]} 52. Bh3+ {[%emt 0:04:33]} Kc7 {[%emt 0:00:00]} 53. Bg4 {[%emt 0:00:17]} Kb6 {[%emt 0:00:00]} 54. Bh5 {[%emt 0:01:09]} Ka5 {[%emt 0:00:00]} 55. Be8 {[%emt 0:00:25]} Nd4 {[%emt 0:00:00]} 56. f4 {[%emt 0:00:02]} gxf4 {[%emt 0:00:00]} 57. gxf4 {[%emt 0:00:05]} Nf3 {[%emt 0:00:00]} 58. f5 {[%emt 0:01:03]} Kb6 {[%emt 0:00:00]} 59. f6 {[%emt 0:00:16]} Ng5 {[%emt 0:00:00]} 60. Kd5 {[%emt 0:00:23]} Kc7 {[%emt 0:00:00]} 61. f7 {[%emt 0:00:44]} Nh7 {[%emt 0:00:00]} 62. Kxe5 {[%emt 0:00:04]} Kd8 {[%emt 0:00:00]} 63. Kd6 {[%emt 0:00:09]} 1-0

[Event "Marienbad A2-GM 2024"]
[Site "Marianske Lazne"]
[Date "2024.01.16"]
[Round "4.10"]
[White "Rasik, Vitezslav"]
[Black "Lalic, Bogdan"]
[Result "1/2-1/2"]
[ECO "C67"]
[WhiteElo "2406"]
[BlackElo "2349"]
[Annotator "TA"]
[PlyCount "39"]
[EventDate "2024.01.10"]
[EventType "tourn"]
[EventCountry "CZE"]
[SourceTitle "playchess.com"]
[Source "ChessBase"]
[SourceQuality "1"]
[TimeControl "40/5400+30:1800+30"]

{[%evp 16,17,18,30]} 1. e4 {[%emt 0:00:03]} e5 {[%emt 0:00:05]} 2. Nf3 {[%emt 0:00:09]} Nc6 {[%emt 0:00:07]} 3. Bb5 {[%emt 0:00:10]} Nf6 {[%emt 0:00:09]} 4. O-O {[%emt 0:00:21][%cal Bh1f1,Bf1e1,Be1e5][%mdl 32]} Nxe4 {[%emt 0:00:08]} 5. Re1 {[%emt 0:00:29]} Nd6 {[%emt 0:00:09]} 6. Nxe5 {[%emt 0:00:32]} Be7 {[%emt 0:00:09]} 7. Bf1 {[%emt 0:00:45]} Nxe5 {[%emt 0:00:11]} 8. Rxe5 {[%emt 0:00:12]} O-O {[%emt 0:00:10]} 9. d4 {[%emt 0:00:57] [#]} {Predecessor:} Bf6 $146 {C67: Ruy Lopez: Berlin Defence: 4 0-0 Nxe4.} 10. Re2 b6 11. Re1 Bb7 12. Bf4 Nf5 13. c3 Re8 14. Rxe8+ Qxe8 15. Qd3 g6 16. Nd2 Qe6 17. Qc4 Qxc4 18. Bxc4 d6 19. Bd3 Re8 20. f3 {½-½ Vachier Lagrave,M (2731)-Vidit,S (2737) Wch Rapid Samarkand 2023 (13)} 1/2-1/2

[Event "Marienbad A2-GM 2024"]
[Site "Marianske Lazne"]
[Date "2024.01.16"]
[Round "5.6"]
[White "Lalic, Bogdan"]
[Black "Morris, James"]
[Result "1/2-1/2"]
[ECO "E11"]
[WhiteElo "2349"]
[BlackElo "2416"]
[Annotator "TA"]
[PlyCount "25"]
[EventDate "2024.01.10"]
[EventType "tourn"]
[EventCountry "CZE"]
[SourceTitle "playchess.com"]
[Source "ChessBase"]
[SourceQuality "1"]
[TimeControl "40/5400+30:1800+30"]

{[%evp 11,25,8,18,20,15,12,16,14,11,0,4,0,0,13,59,50]} 1. d4 {[%emt 0:00:23]} Nf6 {[%emt 0:00:49]} 2. c4 {[%emt 0:00:20]} e6 {[%emt 0:00:19]} 3. Nf3 {[%emt 0:00:08]} Bb4+ {[%emt 0:00:28]} 4. Bd2 {[%emt 0:00:14]} a5 {[%emt 0:00:33]} 5. Nc3 {[%emt 0:00:50]} d5 {[%emt 0:03:16]} 6. e3 {[%emt 0:00:19]} O-O {[%emt 0:02:15]} 7. Bd3 {[%emt 0:00:07] E11: Bogo-Indian.} b6 {[%emt 0:02:11]} 8. Rc1 {[%emt 0:01:39]} Bb7 {[%emt 0:00:26]} 9. a3 {[%emt 0:00:26] The position is equal.} Be7 {[%emt 0:01:23]} 10. O-O {[%emt 0:00:16]} Nbd7 {[%emt 0:01:05]} 11. cxd5 {[%emt 0:01:01]} exd5 {[%emt 0:01:06]} 12. Qc2 {[%emt 0:00:17] [#]} Re8 $146 {[%emt 0:02:50]} (12... c5 $11) ({Predecessor:} 12... c5 13. dxc5 bxc5 14. Ne2 Ne4 15. Bc3 Ndf6 16. Rfd1 Qb6 17. Bxf6 Nxf6 18. Ng3 Rfd8 {0-1 Lintchevski,D (2555)-Potkin,V (2665) Moscow MGSU Rector Cup rapid 2012 (8)}) 13. Ne5 {[%emt 0:04:22] Weighted Error Value: White=0.03 (flawless) /Black=0.08 (flawless)} 1/2-1/2

[Event "Marienbad A2-GM 2024"]
[Site "Marianske Lazne"]
[Date "2024.01.16"]
[Round "5.7"]
[White "Raczek, Krzysztof"]
[Black "Rasik, Vitezslav"]
[Result "1/2-1/2"]
[ECO "B40"]
[WhiteElo "2347"]
[BlackElo "2406"]
[Annotator "TA"]
[PlyCount "35"]
[EventDate "2024.01.10"]
[EventType "tourn"]
[EventCountry "CZE"]
[SourceTitle "playchess.com"]
[Source "ChessBase"]
[SourceQuality "1"]
[TimeControl "40/5400+30:1800+30"]

{[%evp 15,22,47,34,26,37,38,27,26,44]} 1. e4 {[%emt 0:00:03][%cal Be2e4,Be4e5][%mdl 32]} c5 {[%emt 0:00:08]} 2. Nf3 {[%emt 0:00:14]} e6 {[%emt 0:00:12]} 3. d4 {[%emt 0:00:06]} cxd4 {[%emt 0:00:22]} 4. Nxd4 {[%emt 0:00:06]} Nf6 {[%emt 0:00:17]} 5. Nc3 {[%emt 0:00:06]} Bb4 {[%emt 0:00:15]} 6. e5 {[%emt 0:00:05]} Nd5 {[%emt 0:00:09]} 7. Bd2 {[%emt 0:00:27]} Bxc3 {[%emt 0:00:43]} 8. bxc3 {[%emt 0:00:06]} O-O {[%emt 0:00:27]} 9. Bd3 {[%emt 0:15:10] aiming for c4. B40: Sicilian: 2...e6, Unusual lines.} d6 {[%emt 0:01:25]} 10. exd6 {[%emt 0:02:23]} Qxd6 {[%emt 0:00:29]} 11. O-O {[%emt 0:00:19]} a6 {[%emt 0:00:48] [#] Black got outplayed after the opening.   Weighted Error Value: White=0.00 (flawless) /Black=0.00 (flawless)} {Predecessor:} 12. Qf3 $146 e5 13. Qg3 Nf4 14. Bxf4 exf4 15. Qf3 Nd7 16. Nf5 Qf6 17. Qe4 g6 18. Ne7+ {½-½ Horwitz,D (2338)-Oren,I (2263) ISR-USA email 2014 [4]} 1/2-1/2

[Event "Marienbad A2-GM 2024"]
[Site "Marianske Lazne"]
[Date "2024.01.16"]
[Round "5.9"]
[White "Braeuer, Franz"]
[Black "Plat, Vojtech"]
[Result "1/2-1/2"]
[ECO "C41"]
[WhiteElo "2428"]
[BlackElo "2516"]
[Annotator "TA"]
[PlyCount "35"]
[EventDate "2024.01.10"]
[EventType "tourn"]
[EventCountry "CZE"]
[SourceTitle "playchess.com"]
[Source "ChessBase"]
[SourceQuality "1"]
[TimeControl "40/5400+30:1800+30"]

{[%evp 16,20,52,25,23,23,24]} 1. e4 {[%emt 0:01:28]} d6 {[%emt 0:00:36]} 2. d4 {[%emt 0:00:04]} Nf6 {[%emt 0:00:04]} 3. Nc3 {[%emt 0:00:05]} e5 {[%emt 0:00:03]} 4. Nf3 {[%emt 0:00:44]} Nbd7 {[%emt 0:00:19]} 5. Bc4 {[%emt 0:00:35]} Be7 {[%emt 0:00:05]} 6. O-O {[%emt 0:00:28]} O-O {[%emt 0:00:06]} 7. a4 {[%emt 0:00:48]} a5 {[%emt 0:00:05]} 8. h3 {[%emt 0:00:32]} c6 {[%emt 0:00:08]} 9. Re1 {[%emt 0:00:32]} (9. Be3 $5) 9... Nb6 {[%emt 0:00:13] C41: Philidor Defence.} 10. Ba2 {[%emt 0:06:07] 10.Bb3 is setting a new trend.} Nfd7 {[%emt 0:00:08] [#] A rather calm draw.} {Predecessor:} 11. Be3 $146 exd4 12. Bxd4 Nc5 13. Qd2 Ncxa4 14. Nxa4 Nxa4 15. Bxg7 Kxg7 16. Qd4+ Bf6 17. e5 dxe5 18. Qxa4 {½-½ Rapport,R (2763)-Sarana,A (2656) Speed Chess Chess.com INT blitz 2021 (1.34)} 1/2-1/2

[Event "Marienbad A2-GM 2024"]
[Site "Marianske Lazne"]
[Date "2024.01.16"]
[Round "5.10"]
[White "Can, Isik"]
[Black "Besou, Hussain"]
[Result "1-0"]
[ECO "B12"]
[WhiteElo "2500"]
[BlackElo "2277"]
[Annotator "TA"]
[PlyCount "53"]
[EventDate "2024.01.10"]
[EventType "tourn"]
[EventCountry "CZE"]
[SourceTitle "playchess.com"]
[Source "ChessBase"]
[SourceQuality "1"]
[TimeControl "40/5400+30:1800+30"]

{[%evp 13,53,12,29,14,48,46,56,39,51,48,56,59,45,50,65,66,75,32,164,161,127,155,151,156,147,149,239,209,321,290,311,303,291,302,295,263,339,356,451,387,797,784]} 1. e4 {[%emt 0:00:03]} c6 {[%emt 0:00:18]} 2. d4 {[%emt 0:00:04]} d5 {[%emt 0:00:08]} 3. e5 {[%emt 0:00:03]} Bf5 {[%emt 0:00:07]} 4. Nf3 {[%emt 0:00:04]} e6 {[%emt 0:00:07]} 5. Be2 {[%emt 0:00:03]} Ne7 {[%emt 0:00:09]} 6. c3 {[%emt 0:00:04]} h6 {[%emt 0:00:16]} 7. O-O {[%emt 0:00:23]} Nd7 {[%emt 0:00:09]} 8. a4 {[%emt 0:01:45] B12: Caro-Kann: Advance Variation.} a5 {[%emt 0:01:07] is recently more successful than 8...a6.} 9. Na3 {[%emt 0:00:57]} g5 {[%emt 0:03:11]} 10. Ne1 {[%emt 0:00:19] [#] White is slightly better.} Bg6 $146 {[%emt 0:04:37]} ({Predecessor:} 10... Bg7 11. f4 gxf4 12. Nd3 Qb6 13. Kh1 Ng6 14. Nxf4 Nxf4 15. Rxf4 f6 16. Rxf5 exf5 {1-0 Zhigalko,S (2635)-Tari,A (2593) WchT 11th Khanty-Mansiysk 2017 (6.1)}) 11. f4 {[%emt 0:08:41]} Nf5 {[%emt 0:14:00]} 12. Bd3 {[%emt 0:01:33]} gxf4 {[%emt 0:01:50]} 13. Bxf4 {[%emt 0:00:01]} h5 {[%emt 0:13:03]} 14. Nac2 {[%emt 0:00:16]} Qb6 {[%emt 0:05:17]} 15. Qd2 {[%emt 0:06:24]} Qxb2 {[%emt 0:14:27]} ({Black should play} 15... Be7 $14) 16. Nf3 $36 {[%emt 0:00:35][%mdl 2048] [#] Hoping for Rfb1. White is in control.} Qb6 {[%emt 0:00:10]} 17. Rab1 {[%emt 0:00:12] Against c5} Qc7 {[%emt 0:02:26]} 18. Ne3 {[%emt 0:00:41] White is more active.} Nxe3 {[%emt 0:07:15]} 19. Bxe3 {[%emt 0:03:12]} (19. Qxe3 Rg8 $14) 19... O-O-O {[%emt 0:05:46] [#]} (19... Bxd3 $16 20. Qxd3 Be7) 20. Ng5 $1 {[%emt 0:09:16] aiming for Bxg6.} Rg8 {[%emt 0:03:47]} (20... Re8 $142 21. Nxf7 Rg8 22. Bxg6 Rxg6) 21. Bxg6 {[%emt 0:02:47]} ({Less strong is} 21. Nxf7 Re8 22. h4 c5 23. Bxg6 Rxg6 $18) 21... Rxg6 {[%emt 0:00:09]} 22. Rxf7 {[%emt 0:00:04]} ({Weaker is} 22. Nxf7 Re8 23. Qd3 Rg7 $18) 22... Bh6 {[%emt 0:01:19]} 23. h4 {[%emt 0:00:15]} Rdg8 {[%emt 0:00:49]} 24. Qe2 {[%emt 0:01:24]} Qd8 {[%emt 0:03:32]} 25. Qxh5 {[%emt 0:00:18]} ({Don't do} 25. Qb2 $6 Qc7 26. Qe2 c5 27. Qxh5 Qc6 $18) 25... Qe8 {[%emt 0:00:23] Strongly threatening ...Bxg5.} 26. Rbf1 {[%emt 0:04:27] Rh7 is the strong threat.} Nb6 $2 {[%emt 0:02:25]} (26... Kc7 27. R1f2 c5) 27. Rh7 {[%emt 0:00:46] Weighted Error Value: White=0.04 (flawless) /Black=0.36} 1-0

[Event "Marienbad A2-GM 2024"]
[Site "Marianske Lazne"]
[Date "2024.01.17"]
[Round "6.6"]
[White "Morris, James"]
[Black "Besou, Hussain"]
[Result "1-0"]
[ECO "B31"]
[WhiteElo "2416"]
[BlackElo "2277"]
[Annotator "TA"]
[PlyCount "117"]
[EventDate "2024.01.10"]
[EventType "tourn"]
[EventCountry "CZE"]
[SourceTitle "playchess.com"]
[Source "ChessBase"]
[SourceQuality "1"]
[TimeControl "40/5400+30:1800+30"]

{[%evp 21,117,19,15,-5,-11,-33,-26,-33,-26,-31,-31,-31,-30,-27,-18,-25,-20,-52,-11,-14,-14,-17,0,0,0,0,0,-5,0,-8,0,0,0,-21,-12,-13,-13,-17,-18,-38,0,0,0,0,0,0,0,0,0,0,0,0,0,0,0,0,0,-68,-64,-150,-158,-147,-129,-111,-93,-229,-243,-203,-203,-203,-215,-320,-318,-318,-317,-312,-311,-311,-304,-303,-302,-291,-277,-223,-189,-421,0,0,0,0,0,0,0,0,0,0,29990,29991]} 1. e4 {[%emt 0:00:15]} c5 {[%emt 0:00:12]} 2. Nf3 {[%emt 0:00:30]} Nc6 {[%emt 0:00:07]} 3. Bb5 {[%emt 0:00:14]} g6 {[%emt 0:00:10]} 4. O-O {[%emt 0:01:07]} Bg7 {[%emt 0:00:11]} 5. Re1 {[%emt 0:00:20]} Nf6 {[%emt 0:00:11][%cal Bg8f6,Bf6e8,Be8c7,Bc7e6,Be6d4,Bd4f3][%mdl 32]} 6. Nc3 {[%emt 0:05:42]} O-O {[%emt 0:02:18]} 7. e5 {[%emt 0:02:26]} Ne8 {[%emt 0:01:49]} 8. Bxc6 {[%emt 0:02:24]} dxc6 {[%emt 0:00:15]} 9. h3 {[%emt 0:00:03]} Nc7 {[%emt 0:01:08]} 10. d3 {[%emt 0:00:27]} b6 {[%emt 0:03:37]} 11. Ne4 {[%emt 0:09:18]} Ne6 {[%emt 0:02:24]} 12. Ng3 {[%emt 0:05:51] B31: Sicilian: 2...Nc6 3 Bb5 g6.} Nd4 {[%emt 0:13:21] [#]} 13. c3 $146 {[%emt 0:08:43]} ({Predecessor:} 13. Bf4 Qd5 14. Re4 Be6 15. Nxd4 cxd4 16. Qd2 Rfe8 17. b3 a5 18. Rae1 a4 19. Bh6 Bh8 {1-0 Vaishali,R (2497)-Jacobsen,M (2261) Sant Boi de Llobregat op 4th 2023 (1)}) 13... Nxf3+ {[%emt 0:01:24]} 14. Qxf3 {[%emt 0:00:02] Black has an edge.} Qd5 {[%emt 0:03:14]} 15. Qxd5 {[%emt 0:03:54]} cxd5 {[%emt 0:01:38]} 16. d4 {[%emt 0:01:03]} Ba6 {[%emt 0:06:36]} 17. Be3 {[%emt 0:00:14]} Rfc8 {[%emt 0:00:35]} 18. f4 {[%emt 0:01:44]} e6 {[%emt 0:00:25]} 19. Nh1 {[%emt 0:00:34][%cal Bg3h1,Bh1f2,Bf2h3,Bh3f4][%mdl 32]} cxd4 {[%emt 0:10:24]} 20. Bxd4 {[%emt 0:00:30]} Bh6 {[%emt 0:01:02][%cal Bg7h6,Bh6g5,Bg5e7][%mdl 32]} 21. g3 {[%emt 0:05:28]} g5 {[%emt 0:01:12]} 22. fxg5 {[%emt 0:22:03]} Bxg5 {[%emt 0:00:08]} 23. Nf2 {[%emt 0:00:02]} h5 {[%emt 0:12:36]} 24. Kg2 {[%emt 0:02:44][%cal Bg1g2,Bg2f3,Bf3f2][%mdl 32]} Kh7 {[%emt 0:03:26]} 25. Kf3 {[%emt 0:01:08]} Rg8 {[%emt 0:01:57]} 26. h4 {[%emt 0:01:39]} Be7 {[%emt 0:00:31]} 27. Nh3 {[%emt 0:03:10] White is weak on the light squares} Bd3 {[%emt 0:04:15]} 28. Nf4 {[%emt 0:00:02]} Bf5 {[%emt 0:00:17]} 29. Kf2 {[%emt 0:00:14]} Bg4 {[%emt 0:00:41]} 30. a4 {[%emt 0:00:03]} Rgc8 {[%emt 0:03:22]} 31. a5 {[%emt 0:05:13]} Bc5 {[%emt 0:01:48]} 32. axb6 {[%emt 0:05:22]} Bxd4+ {[%emt 0:03:49]} 33. cxd4 {[%emt 0:00:01]} axb6 {[%emt 0:00:15] ...Rxa1 would be deadly.} 34. Rxa8 {[%emt 0:01:53]} Rxa8 $11 {[%emt 0:00:04][%mdl 4096] Endgame KRB-KRN} 35. Re3 {[%emt 0:00:56]} Ra4 {[%emt 0:00:39]} 36. Rd3 $1 {[%emt 0:00:04]} Rb4 {[%emt 0:00:24]} 37. b3 {[%emt 0:02:40]} Rb5 {[%emt 0:07:09]} 38. Rc3 {[%emt 0:00:51]} Ra5 {[%emt 0:00:13] Strongly threatening ...Ra2+.} 39. Ke3 {[%emt 0:00:19]} (39. Rc6 $11) 39... Ra1 $1 $15 {[%emt 0:07:46]} 40. Rd3 {[%emt 0:07:24]} (40. b4 $15) 40... b5 $1 $17 {[%emt 0:01:39]} 41. Rc3 {[%emt 0:04:29]} b4 {[%emt 0:11:58]} 42. Rc7 {[%emt 0:09:47]} Kg7 {[%emt 0:00:32]} 43. Rb7 {[%emt 0:00:18]} (43. Nd3 $17) 43... Rf1 $19 {[%emt 0:00:22]} 44. Rxb4 {[%emt 0:00:08]} ({Don't play} 44. Kd2 Rf2+ 45. Kd3 Rf3+ 46. Kd2 Rxg3 47. Rxb4 Rf3) 44... Rf3+ {[%emt 0:00:04]} 45. Kd2 {[%emt 0:00:03]} Rxg3 {[%emt 0:00:06]} 46. Rb8 {[%emt 0:00:57]} (46. Ra4 $142 Rxb3 47. Ra1) 46... Rf3 {[%emt 0:01:36]} 47. Nd3 {[%emt 0:00:05]} Bf5 {[%emt 0:00:07]} 48. Nc5 {[%emt 0:01:01]} Rf4 {[%emt 0:02:53][%csl LRd4,LRh4]} 49. Ke3 {[%emt 0:00:13]} Rxh4 {[%emt 0:00:05]} 50. b4 {[%emt 0:00:20]} Rh1 $1 {[%emt 0:07:21]} 51. Nd7 {[%emt 0:03:29] [#]} h4 $1 {[%emt 0:01:08][%cal Bh5h4,Bh4h3][%mdl 32]} 52. Nf6 {[%emt 0:00:03] [#]} h3 $1 {[%emt 0:07:45]} 53. Kf4 $2 {[%emt 0:00:03]} (53. Ra8) 53... Bh7 $2 {[%emt 0:03:09]} ({Worse is} 53... h2 54. Rg8+ Kh6 55. Rh8+ Kg7 56. Rg8+ Kh6 57. Rh8+ Kg7 58. Rg8+ $11) ({Black should try} 53... Rf1+ $19 54. Kg3 Rg1+ 55. Kh2 Rg2+ 56. Kh1 Rd2) 54. Kg3 $11 {[%emt 0:01:27]} Rd1 {[%emt 0:01:02] Threatens to win with ...Rd3+.} 55. Kxh3 {[%emt 0:00:06]} Rxd4 {[%emt 0:00:05] And now ...Bf5+ would win.} 56. b5 {[%emt 0:00:03]} Rb4 {[%emt 0:00:36] aiming for ...Bg6.} 57. b6 {[%emt 0:00:03]} d4 {[%emt 0:00:08]} 58. Kg4 {[%emt 0:00:10] Threatening mate with Kg5.} d3+ $2 {[%emt 0:01:28][%mdl 8192]} (58... Rb1 $11) 59. Kg5 {[%emt 0:01:26] Quite a comeback for White.   Weighted Error Value: White=0.17 (very precise) /Black=0.24 (precise)} 1-0

[Event "Marienbad A2-GM 2024"]
[Site "Marianske Lazne"]
[Date "2024.01.17"]
[Round "6.7"]
[White "Plat, Vojtech"]
[Black "Can, Isik"]
[Result "1/2-1/2"]
[ECO "D10"]
[WhiteElo "2516"]
[BlackElo "2500"]
[Annotator "TA"]
[PlyCount "34"]
[EventDate "2024.01.10"]
[EventType "tourn"]
[EventCountry "CZE"]
[SourceTitle "playchess.com"]
[Source "ChessBase"]
[SourceQuality "1"]
[TimeControl "40/5400+30:1800+30"]

{[%evp 13,17,15,12,24,19,32]} 1. d4 {[%emt 0:00:04]} d5 {[%emt 0:00:03]} 2. c4 {[%emt 0:00:05]} c6 {[%emt 0:00:03]} 3. Nc3 {[%emt 0:00:06]} Nf6 {[%emt 0:00:05]} 4. cxd5 {[%emt 0:00:06]} cxd5 {[%emt 0:00:03]} 5. Bf4 {[%emt 0:00:06]} Nc6 {[%emt 0:00:03]} 6. e3 {[%emt 0:00:06]} Bf5 {[%emt 0:00:03]} 7. Qb3 {[%emt 0:00:32] 7.Nf3 is the hot move.} Na5 $1 {[%emt 0:00:06]} 8. Qa4+ {[%emt 0:00:06] D10: Slav Defence: 3 cxd5 (without early Nf3) and 3 Nc3.} Bd7 {[%emt 0:00:03]} 9. Qc2 {[%emt 0:00:06] [#] An uneventful encounter.} {Predecessor:} e6 $146 10. Bd3 Rc8 11. Nf3 Bb4 12. O-O O-O 13. Bg5 h6 14. Bh4 a6 15. Ne5 Bb5 16. Bxb5 axb5 17. Bxf6 gxf6 {½-½ Giri,A (2768)-Firouzja,A (2785) Bucharest Superbet Classic 3rd 2023 (2)} 1/2-1/2

[Event "Marienbad A2-GM 2024"]
[Site "Marianske Lazne"]
[Date "2024.01.17"]
[Round "6.8"]
[White "Agdelen, Huseyin Can"]
[Black "Braeuer, Franz"]
[Result "1/2-1/2"]
[ECO "C84"]
[WhiteElo "2409"]
[BlackElo "2428"]
[Annotator "TA"]
[PlyCount "40"]
[EventDate "2024.01.10"]
[EventType "tourn"]
[EventCountry "CZE"]
[SourceTitle "playchess.com"]
[Source "ChessBase"]
[SourceQuality "1"]
[TimeControl "40/5400+30:1800+30"]

{[%evp 15,40,12,18,15,23,16,22,14,33,31,20,8,14,0,0,0,0,0,9,8,11,-1,0,1,0,7,0]} 1. e4 {[%emt 0:15:24]} e5 {[%emt 0:00:08]} 2. Nf3 {[%emt 0:00:14]} Nc6 {[%emt 0:00:06]} 3. Bb5 {[%emt 0:02:03][%cal Bf1b5,Bb5a4,Ba4b3][%mdl 32]} a6 {[%emt 0:00:06]} 4. Ba4 {[%emt 0:00:09]} Nf6 {[%emt 0:00:06]} 5. O-O {[%emt 0:01:20]} Be7 {[%emt 0:00:14]} 6. d3 {[%emt 0:11:36]} b5 {[%emt 0:01:01]} 7. Bb3 {[%emt 0:00:07]} d6 {[%emt 0:02:32]} 8. a4 {[%emt 0:02:29]} b4 {[%emt 0:01:31]} 9. Nbd2 {[%emt 0:04:47] C84: Closed Ruy Lopez: Unusual White 6th moves.} O-O {[%emt 0:00:10]} 10. c3 {[%emt 0:11:19]} Rb8 {[%emt 0:03:44]} 11. Re1 {[%emt 0:08:18]} h6 {[%emt 0:21:32]} 12. h3 {[%emt 0:14:39]} Na5 {[%emt 0:06:58]} 13. Bc2 {[%emt 0:00:25] The position is equal.} c5 {[%emt 0:00:24]} 14. Nf1 {[%emt 0:04:42]} Be6 {[%emt 0:02:46] [#]} 15. d4 $146 {[%emt 0:03:24]} ({Predecessor:} 15. Ng3 bxc3 16. bxc3 Nb3 17. Rb1 Nxc1 18. Rxc1 Qa5 19. d4 cxd4 20. cxd4 Rfc8 21. Bd3 {0-1 Perera Alfonso,R (2320)-Ghosh,D (2538) Gran Canaria Online Blitz 3rd 2022 (2)}) 15... bxc3 {[%emt 0:16:59]} 16. bxc3 {[%emt 0:00:28]} Nb3 {[%emt 0:00:20]} 17. Rb1 {[%emt 0:00:44][%cal Rc2b3]} Nxc1 {[%emt 0:00:52]} 18. Rxc1 {[%emt 0:00:35]} cxd4 {[%emt 0:07:44]} 19. cxd4 {[%emt 0:00:05]} Qa5 {[%emt 0:00:15]} 20. Qd2 {[%emt 0:01:40]} Qxd2 {[%emt 0:14:59] A rather calm draw.   Weighted Error Value: White=0.04 (flawless) /Black=0.04 (flawless)} 1/2-1/2

[Event "Marienbad A2-GM 2024"]
[Site "Marianske Lazne"]
[Date "2024.01.17"]
[Round "6.9"]
[White "Rasik, Vitezslav"]
[Black "Nguyen, Alex Dac-Vuong"]
[Result "1/2-1/2"]
[ECO "C00"]
[WhiteElo "2406"]
[BlackElo "2347"]
[Annotator "TA"]
[PlyCount "21"]
[EventDate "2024.01.10"]
[EventType "tourn"]
[EventCountry "CZE"]
[SourceTitle "playchess.com"]
[Source "ChessBase"]
[SourceQuality "1"]
[TimeControl "40/5400+30:1800+30"]

{[%evp 12,21,0,0,12,14,22,0,5,2,3,-3]} 1. e4 {[%emt 0:00:03]} e6 {[%emt 0:00:06]} 2. d3 {[%emt 0:00:19]} c5 {[%emt 0:00:08]} 3. Nf3 {[%emt 0:00:35]} Nc6 {[%emt 0:00:06]} 4. g3 {[%emt 0:01:01]} g6 {[%emt 0:00:05]} 5. Bg2 {[%emt 0:00:41]} Bg7 {[%emt 0:00:07]} 6. O-O {[%emt 0:00:53]} d6 {[%emt 0:00:04]} 7. c3 {[%emt 0:08:20][%cal Bc2c3,Bc3d4,Bd4c5][%mdl 32] The position is equal.} e5 {[%emt 0:00:14] A04: Unusual lines after 1 Nf3 and King's Indian Attack.} 8. a3 {[%emt 0:01:42]} Nf6 {[%emt 0:05:06] [#]} 9. d4 $146 {[%emt 0:09:15]} ({Predecessor:} 9. b4 O-O 10. b5 Ne7 11. c4 Ne8 12. Nc3 f5 13. Ra2 Nc7 14. exf5 Nxf5 15. Ng5 {0-1 Solon,N (2306)-Kamsky,G (2666) Titled Tuesday intern op 16th Aug Late blitz 2022 (8)}) 9... exd4 {[%emt 0:09:27]} ({Don't do} 9... Nxe4 10. d5 $16) 10. cxd4 {[%emt 0:00:16]} Bg4 {[%emt 0:00:15]} 11. dxc5 $1 {[%emt 0:16:31] A rather calm draw.   Weighted Error Value: White=0.07 (flawless) /Black=0.03 (flawless)} 1/2-1/2